fUSD/lending_fUSD_20251115
["ID","MTS","AMOUNT","RATE_DAILY","PERIOD"]
[394013359,1763184632346,-52.39570378,0.00016789,2]
[394013360,1763184632357,-98.60429622,0.00016789,2]
[394013361,1763184632366,-151.0,0.00016789,2]
[394013362,1763184632376,-151.0,0.00016789,2]
[394013363,1763184632385,-151.0,0.00016789,2]
[394013364,1763184632394,-151.0,0.00016789,2]
[394013365,1763184632403,-151.0,0.00016789,2]
[394013366,1763184632412,-151.0,0.00016789,2]
[394013367,1763184632421,-151.0,0.00016789,2]
[394013368,1763184632432,-151.0,0.00016789,2]
[394013369,1763184632442,-151.0,0.00016789,2]
[394013370,1763184632451,-151.0,0.00016789,2]
[394013371,1763184632460,-151.0,0.00016789,2]
[394013372,1763184632470,-151.0,0.00016789,2]
[394013373,1763184632479,-151.0,0.00016789,2]
[394013374,1763184632488,-151.0,0.00016789,2]
[394013375,1763184632497,-151.0,0.00016789,2]
[394013376,1763184632507,-151.0,0.00016789,2]
[394013378,1763184632516,-166.26894497,0.000169,2]
[394013380,1763184632525,-300.0,0.00016972,2]
[394013382,1763184632534,-300.0,0.00016972,2]
[394013384,1763184632543,-1200.0,0.00016972,2]
[394013385,1763184632552,-170.3553014,0.00016973,2]
[394013386,1763184632562,-501.12314244,0.00016973,2]
[394013387,1763184632571,-501.38569255,0.00016973,2]
[394013388,1763184632580,-500.58742874,0.00016973,2]
[394013389,1763184632588,-500.0,0.00016973,2]
[394013390,1763184632597,-446.85837263,0.00016973,2]
[394013391,1763184632617,-53.14162737,0.00016973,2]
[394013392,1763184632626,-501.70606992,0.00016973,2]
[394013393,1763184632635,-333.29851499,0.00016973,2]
[394013394,1763184632646,-166.70148501,0.00016973,2]
[394013395,1763184632656,-86.033515,0.00016974,2]
[394013396,1763184632667,-69.89861186,0.00016974,2]
[394013397,1763184632676,-264.85924021,0.00016999,2]
[394013398,1763184632685,-171.71349112,0.00016999,2]
[394013399,1763184632694,-69.27865681,0.00016999,2]
[394013403,1763184638191,-216.39267869,0.00016999,2]
[394013404,1763184638200,-338.69539629,0.00016999,2]
[394013405,1763184638250,-161.30460371,0.00016999,2]
[394013406,1763184638259,-500.0,0.00016999,2]
[394013407,1763184638268,-500.0,0.00016999,2]
[394013408,1763184638277,-500.0,0.00016999,2]
[394013409,1763184638286,-500.0,0.00016999,2]
[394013410,1763184638295,-500.0,0.00016999,2]
[394013411,1763184638304,-500.0,0.00016999,2]
[394013412,1763184638313,-500.0,0.00016999,2]
[394013413,1763184638322,-500.0,0.00016999,2]
[394013414,1763184638331,-63.83521644,0.00016999,2]
[394013415,1763184638343,-436.16478356,0.00016999,2]
[394013416,1763184638352,-44.53661392,0.00016999,2]
[394013524,1763184640270,-455.46338608,0.00016999,2]
[394013526,1763184640280,-500.0,0.00016999,2]
[394013528,1763184640289,-500.0,0.00016999,2]
[394013530,1763184640298,-500.0,0.00016999,2]
[394013532,1763184640308,-500.0,0.00016999,2]
[394013534,1763184640317,-325.05549412,0.00016999,2]
[394013536,1763184640327,-426221.76085849,0.00017,2]
[394013538,1763184640336,-600.0,0.00017,6]
[394013540,1763184640345,-565.70789121,0.000171,2]
[394013542,1763184640354,-1300.0,0.000171,6]
[394013547,1763184640586,-4810.63,0.00017137,2]
[394013548,1763184640601,-2000.0,0.000172,6]
[394013549,1763184640610,-500.0,0.0001726,2]
[394013550,1763184640620,-2700.0,0.000173,6]
[394013551,1763184640629,-832.89,0.00017397,2]
[394013552,1763184640639,-3400.0,0.000174,6]
[394013553,1763184640648,-503.0,0.00017425,2]
[394013554,1763184640657,-600.0,0.000175,6]
[394013555,1763184640666,-748.09751643,0.00017521,2]
[394013556,1763184640675,-500.0,0.00017589,2]
[394013557,1763184640684,-234.7044,0.000176,2]
[394013558,1763184640694,-280.2361,0.000176,2]
[394013559,1763184640703,-4075.8433,0.000176,2]
[394013560,1763184640712,-33167.2589,0.000176,2]
[394013561,1763184640721,-6654.7006,0.000176,2]
[394013562,1763184640730,-600.0,0.000176,6]
[394013563,1763184640740,-150.0,0.00017612,2]
[394013564,1763184640749,-835.70918602,0.00017614,2]
[394013565,1763184640758,-163.00519291,0.00017616,2]
[394013566,1763184640767,-159.54,0.00017624,2]
[394013567,1763184640776,-835.70918593,0.00017646,2]
[394013568,1763184640785,-222.2113773,0.00017656,2]
[394013569,1763184640794,-500.0,0.00017673,2]
[394013570,1763184640804,-506.60742957,0.00017673,2]
[394013571,1763184640813,-500.0,0.00017673,2]
[394013572,1763184640822,-501.34785536,0.00017673,2]
[394013573,1763184640832,-500.0,0.00017673,2]
[394013574,1763184640841,-500.0,0.00017673,2]
[394013575,1763184640850,-835.70918593,0.00017678,2]
[394013576,1763184640859,-600.0,0.000177,6]
[394013577,1763184640869,-835.70918593,0.00017709,2]
[394013578,1763184640878,-168.0,0.00017714,2]
[394013579,1763184640887,-252.0,0.00017715,2]
[394013580,1763184640897,-150.0,0.00017739,2]
[394013581,1763184640906,-835.70918593,0.00017741,2]
[394013582,1763184640915,-151.5815426,0.00017743,2]
[394013583,1763184640925,-150.0,0.00017751,2]
[394013584,1763184640934,-150.0,0.00017754,2]
[394013585,1763184640944,-1000.0,0.0001776,2]
[394013586,1763184640953,-1000.0,0.00017762,2]
[394013587,1763184640962,-835.70918593,0.00017773,2]
[394013588,1763184640972,-150.0,0.00017777,2]
[394013589,1763184640981,-150.0,0.00017779,2]
[394013590,1763184640990,-150.0,0.0001778,2]
[394013591,1763184640999,-500.0,0.00017781,2]
[394013592,1763184641009,-252.0,0.00017799,2]
[394013593,1763184641018,-2000.0,0.000178,2]
[394013594,1763184641027,-600.0,0.000178,6]
[394013595,1763184641035,-246.3701587,0.00017803,2]
[394013596,1763184641045,-835.70918593,0.00017805,2]
[394013597,1763184641054,-1000.0,0.00017813,2]
[394013598,1763184641063,-2343.09737,0.0001782,2]
[394013599,1763184641072,-544.615,0.0001783,2]
[394013600,1763184641081,-150.0,0.00017831,2]
[394013601,1763184641090,-1000.0,0.00017832,2]
[394013602,1763184641100,-478.96003305,0.00017833,2]
[394013603,1763184641109,-835.70918593,0.00017836,2]
[394013604,1763184641118,-1000.0,0.0001784,2]
[394013605,1763184641127,-463.80240271,0.00017845,2]
[394013606,1763184641136,-200.0,0.00017856,2]
[394013607,1763184641146,-1000.0,0.00017858,2]
[394013608,1763184641155,-1000.0,0.00017864,2]
[394013609,1763184641164,-289.42773263,0.00017866,2]
[394013610,1763184641174,-835.70918593,0.00017868,2]
[394013611,1763184641184,-150.0,0.0001787,2]
[394013612,1763184641193,-1000.0,0.00017872,2]
[394013613,1763184641202,-1000.0,0.00017874,2]
[394013614,1763184641211,-1000.0,0.00017881,2]
[394013615,1763184641220,-835.70918593,0.000179,2]
[394013616,1763184641230,-1300.0,0.000179,6]
[394013617,1763184641239,-152.10898746,0.000179,3]
[394013618,1763184641248,-300.0,0.00017905,2]
[394013619,1763184641257,-1000.0,0.00017908,2]
[394013620,1763184641266,-1000.0,0.0001791,2]
[394013621,1763184641275,-1000.0,0.00017922,2]
[394013622,1763184641284,-150.0,0.0001793,2]
[394013623,1763184641292,-150.0,0.0001793,2]
[394013624,1763184641301,-150.0,0.00017958,2]
[394013625,1763184641311,-1000.0,0.00017972,2]
[394013626,1763184641320,-500.0,0.00017973,2]
[394013627,1763184641329,-500.0,0.00017973,2]
[394013628,1763184641338,-501.09401092,0.00017973,2]
[394013629,1763184641347,-500.0,0.00017973,2]
[394013630,1763184641356,-500.0,0.00017973,2]
[394013631,1763184641365,-500.0,0.00017973,2]
[394013632,1763184641374,-500.0,0.00017973,2]
[394013633,1763184641384,-501.74831754,0.00017973,2]
[394013634,1763184641393,-500.0,0.00017973,2]
[394013635,1763184641402,-500.0,0.00017973,2]
[394013636,1763184641411,-500.0,0.00017973,2]
[394013637,1763184641421,-500.0,0.00017973,2]
[394013638,1763184641430,-500.0,0.00017973,2]
[394013639,1763184641444,-500.0,0.00017973,2]
[394013640,1763184641454,-1000.0,0.00017976,2]
[394013641,1763184641463,-150.0,0.00017977,2]
[394013642,1763184641472,-1344.0,0.00017981,2]
[394013643,1763184641483,-159704.8729207,0.00017981,2]
[394013644,1763184641492,-27071.9546488,0.00017981,2]
[394013645,1763184641501,-19007.1469162,0.00017981,2]
[394013646,1763184641510,-5290.0283316,0.00017981,2]
[394013647,1763184641523,-644849.3990939,0.00017981,2]
[394013648,1763184641532,-510.0,0.0001799,2]
[394013649,1763184641541,-150.0,0.00017995,2]
[394013650,1763184641550,-300.0,0.00017999,2]
[394013651,1763184641559,-300.0,0.00017999,2]
[394013652,1763184641569,-1927218.32412454,0.00018,2]
[394013653,1763184641600,-552.93272396,0.00018,2]
[394013654,1763184641637,-82062.63937401,0.00018,2]
[394013661,1763184644085,-756.74562488,0.00018,2]
[394013662,1763184644157,-455.83943095,0.00018,2]
[394013663,1763184644315,-816.0,0.00018,2]
[394013669,1763185096942,150.0,0.00016712,120]
[394013670,1763185219646,165.22519535,0.00017,4]
[394013671,1763185490353,1000.0,0.00013699,2]
[394013674,1763185591340,176.9,0.00022,30]
[394013677,1763185805334,162.0,0.0002244,120]
[394013678,1763185806745,162.0,0.00023562,120]
[394013679,1763185808232,511.48,0.00030137,120]
[394013681,1763185831384,-156.79,0.00016437,2]
[394013682,1763185831394,-280.21440447,0.00016438,2]
[394013683,1763185831403,-342.97092283,0.00016438,2]
[394013684,1763185831412,-60.84961989,0.00016438,2]
[394013686,1763185831424,-1187.33038011,0.00016438,2]
[394013688,1763185831433,-1937.45424938,0.00016704,2]
[394013690,1763185831458,-825.60575062,0.00016704,2]
[394013691,1763185831467,-200.0,0.00016708,2]
[394013692,1763185831477,-150.0,0.00016712,2]
[394013693,1763185831486,-500.0,0.00016723,2]
[394013694,1763185831495,-1200.0,0.00016798,2]
[394013695,1763185831504,-471.0,0.00016799,2]
[394013696,1763185831514,-4717.9672,0.000168,2]
[394013697,1763185831523,-664.238,0.000168,2]
[394013698,1763185831532,-473.736,0.000168,2]
[394013699,1763185831541,-2500.0,0.000168,2]
[394013700,1763185831550,-500.0,0.00016873,2]
[394013701,1763185831559,-500.0,0.00016873,2]
[394013702,1763185831568,-184.79730938,0.00016873,2]
[394013703,1763185831577,-501.76439475,0.00016873,2]
[394013704,1763185831586,-644.16129734,0.00016873,2]
[394013705,1763185831595,-15280.98320298,0.0001688,2]
[394013706,1763185831605,-151.0,0.0001689,2]
[394013707,1763185831614,-308.57904966,0.00016899,2]
[394013708,1763185831624,-357.54843757,0.00016899,2]
[394013709,1763185831633,-500.0,0.00016899,2]
[394013710,1763185831643,-500.0,0.00016899,2]
[394013711,1763185831652,-296.8216592,0.00016899,2]
[394013712,1763185831661,-500.0,0.00016899,2]
[394013713,1763185831670,-544.05942287,0.00016899,2]
[394013714,1763185831679,-1712.87,0.00016922,2]
[394013715,1763185831689,-2377.22,0.00016922,2]
[394013716,1763185831698,-9999.99,0.00016922,2]
[394013717,1763185831707,-9999.99,0.00016922,2]
[394013718,1763185831717,-999.99,0.00016922,2]
[394013719,1763185831726,-6740.12,0.00016922,2]
[394013720,1763185831735,-150.99,0.00016922,2]
[394013721,1763185831744,-9999.99,0.00016922,2]
[394013722,1763185831753,-4748.92,0.00016922,2]
[394013723,1763185831762,-509.33,0.00016922,2]
[394013724,1763185831771,-1825.44,0.00016922,2]
[394013725,1763185831779,-4762.71,0.00016922,2]
[394013726,1763185831790,-150.99,0.00016922,2]
[394013727,1763185831798,-250.0,0.00017,2]
[394013729,1763185831808,-503.0,0.0001726,2]
[394013731,1763185831817,-1000.0,0.00017421,2]
[394013733,1763185831828,-795.0,0.00017483,2]
[394013735,1763185831838,-2000.0,0.000175,2]
[394013737,1763185831848,-795.0,0.00017533,2]
[394013739,1763185831857,-5888.0,0.00017575,2]
[394013740,1763185831866,-795.0,0.00017615,2]
[394013741,1763185831877,-222.2113773,0.0001766,2]
[394013742,1763185831885,-170.22219853,0.0001769,2]
[394013743,1763185831895,-699.91,0.000177,2]
[394013745,1763185831904,-300.0,0.00017724,2]
[394013746,1763185831914,-300.0,0.00017727,2]
[394013747,1763185831923,-1000.0,0.00017731,2]
[394013748,1763185831932,-300.0,0.00017733,2]
[394013749,1763185831941,-300.0,0.00017735,2]
[394013750,1763185831950,-300.0,0.00017737,2]
[394013751,1763185831959,-795.0,0.00017739,2]
[394013752,1763185831968,-300.0,0.00017739,2]
[394013753,1763185831977,-300.0,0.00017739,2]
[394013754,1763185831985,-795.0,0.00017741,2]
[394013755,1763185831994,-300.0,0.00017747,2]
[394013756,1763185832003,-1000.0,0.00017747,2]
[394013757,1763185832012,-1000.0,0.00017747,2]
[394013758,1763185832022,-300.0,0.00017748,2]
[394013759,1763185832031,-300.0,0.00017748,2]
[394013760,1763185832041,-300.0,0.0001775,2]
[394013761,1763185832050,-1000.0,0.00017751,2]
[394013762,1763185832059,-300.0,0.00017754,2]
[394013763,1763185832068,-300.0,0.00017756,2]
[394013764,1763185832077,-300.0,0.00017758,2]
[394013765,1763185832087,-300.0,0.0001776,2]
[394013766,1763185832097,-1000.0,0.00017761,2]
[394013767,1763185832106,-300.0,0.00017763,2]
[394013768,1763185832116,-300.0,0.00017763,2]
[394013769,1763185832126,-300.0,0.00017763,2]
[394013770,1763185832135,-795.0,0.00017766,2]
[394013771,1763185832144,-1000.0,0.00017769,2]
[394013772,1763185832153,-500.0,0.00017773,2]
[394013773,1763185832162,-300.0,0.00017773,2]
[394013774,1763185832172,-1000.0,0.00017773,2]
[394013775,1763185832181,-300.0,0.00017775,2]
[394013776,1763185832191,-300.0,0.00017777,2]
[394013777,1763185832200,-300.0,0.00017778,2]
[394013778,1763185832209,-300.0,0.00017781,2]
[394013779,1763185832218,-300.0,0.00017788,2]
[394013780,1763185832228,-1000.0,0.00017788,2]
[394013781,1763185832237,-300.0,0.0001779,2]
[394013782,1763185832246,-1000.0,0.00017792,2]
[394013783,1763185832255,-1000.0,0.00017793,2]
[394013784,1763185832265,-1000.0,0.00017796,2]
[394013785,1763185832274,-300.0,0.00017797,2]
[394013786,1763185832283,-150.0,0.00017797,2]
[394013787,1763185832293,-1000.0,0.00017797,2]
[394013788,1763185832303,-1000.0,0.00017797,2]
[394013789,1763185832311,-300.0,0.00017799,2]
[394013790,1763185832320,-1000.0,0.00017799,2]
[394013791,1763185832329,-300.0,0.00017801,2]
[394013792,1763185832339,-300.0,0.00017801,2]
[394013793,1763185832349,-300.0,0.00017803,2]
[394013794,1763185832358,-300.0,0.00017805,2]
[394013795,1763185832368,-300.0,0.00017807,2]
[394013796,1763185832377,-1000.0,0.00017807,2]
[394013797,1763185832387,-300.0,0.00017809,2]
[394013798,1763185832396,-300.0,0.00017813,2]
[394013799,1763185832406,-300.0,0.00017818,2]
[394013800,1763185832415,-300.0,0.00017824,2]
[394013801,1763185832424,-1000.0,0.00017824,2]
[394013802,1763185832434,-150.0,0.00017826,2]
[394013803,1763185832443,-300.0,0.0001783,2]
[394013804,1763185832452,-1000.0,0.00017833,2]
[394013805,1763185832461,-478.96003305,0.00017834,2]
[394013806,1763185832471,-300.0,0.00017835,2]
[394013807,1763185832480,-1000.0,0.00017835,2]
[394013808,1763185832490,-1000.0,0.00017836,2]
[394013809,1763185832499,-1000.0,0.00017837,2]
[394013810,1763185832508,-300.0,0.00017838,2]
[394013811,1763185832517,-300.0,0.00017838,2]
[394013812,1763185832526,-300.0,0.0001784,2]
[394013813,1763185832536,-300.0,0.00017847,2]
[394013814,1763185832545,-300.0,0.0001785,2]
[394013815,1763185832554,-300.0,0.00017851,2]
[394013816,1763185832563,-435.692,0.00017855,2]
[394013817,1763185832573,-300.0,0.00017855,2]
[394013818,1763185832582,-1000.0,0.00017855,2]
[394013819,1763185832592,-200.0,0.00017856,2]
[394013820,1763185832601,-300.0,0.00017857,2]
[394013821,1763185832611,-300.0,0.00017859,2]
[394013822,1763185832620,-1000.0,0.00017861,2]
[394013823,1763185832629,-300.0,0.00017863,2]
[394013824,1763185832639,-300.0,0.00017863,2]
[394013825,1763185832648,-1000.0,0.00017863,2]
[394013826,1763185832657,-1000.0,0.00017865,2]
[394013827,1763185832666,-300.0,0.00017868,2]
[394013828,1763185832676,-300.0,0.0001787,2]
[394013829,1763185832685,-152.08987842,0.00017872,2]
[394013830,1763185832695,-300.0,0.00017873,2]
[394013831,1763185832704,-300.0,0.00017874,2]
[394013832,1763185832713,-300.0,0.00017875,2]
[394013833,1763185832722,-152.08987841,0.00017876,2]
[394013834,1763185832731,-300.0,0.00017876,2]
[394013835,1763185832740,-152.08987841,0.00017879,2]
[394013836,1763185832750,-300.0,0.0001788,2]
[394013837,1763185832759,-1000.0,0.00017882,2]
[394013838,1763185832768,-152.08987841,0.00017883,2]
[394013839,1763185832778,-152.08987841,0.00017886,2]
[394013840,1763185832787,-300.0,0.00017887,2]
[394013841,1763185832796,-1000.0,0.00017888,2]
[394013842,1763185832805,-1000.0,0.00017889,2]
[394013843,1763185832814,-152.08987841,0.0001789,2]
[394013844,1763185832823,-300.0,0.00017891,2]
[394013845,1763185832838,-300.0,0.00017891,2]
[394013846,1763185832847,-300.0,0.00017892,2]
[394013847,1763185832857,-300.0,0.00017892,2]
[394013848,1763185832866,-152.08987841,0.00017893,2]
[394013849,1763185832876,-1000.0,0.00017896,2]
[394013850,1763185832885,-152.08987841,0.00017897,2]
[394013851,1763185832895,-300.0,0.00017898,2]
[394013852,1763185832907,-300.0,0.00017898,2]
[394013853,1763185832917,-300.0,0.000179,2]
[394013854,1763185832926,-300.0,0.000179,2]
[394013855,1763185832935,-152.08987841,0.000179,2]
[394013856,1763185832944,-324.94236177,0.000179,2]
[394013857,1763185832954,-175.78061052,0.000179,2]
[394013858,1763185832963,-1079.0,0.000179,2]
[394013859,1763185832972,-300.0,0.00017903,2]
[394013860,1763185832981,-1000.0,0.00017905,2]
[394013861,1763185832997,-300.0,0.00017907,2]
[394013862,1763185833007,-1000.0,0.00017908,2]
[394013863,1763185833016,-300.0,0.00017913,2]
[394013864,1763185833025,-300.0,0.00017916,2]
[394013865,1763185833034,-1000.0,0.00017916,2]
[394013866,1763185833043,-1000.0,0.00017917,2]
[394013867,1763185833052,-300.0,0.00017921,2]
[394013868,1763185833062,-300.0,0.00017924,2]
[394013869,1763185833071,-300.0,0.00017927,2]
[394013870,1763185833081,-300.0,0.0001793,2]
[394013871,1763185833091,-1000.0,0.00017933,2]
[394013872,1763185833100,-300.0,0.00017938,2]
[394013873,1763185833110,-1000.0,0.00017938,2]
[394013874,1763185833119,-300.0,0.00017939,2]
[394013875,1763185833129,-300.0,0.00017939,2]
[394013876,1763185833139,-300.0,0.00017942,2]
[394013877,1763185833148,-300.0,0.00017945,2]
[394013878,1763185833157,-1000.0,0.00017947,2]
[394013879,1763185833167,-1000.0,0.00017948,2]
[394013880,1763185833176,-300.0,0.00017949,2]
[394013881,1763185833186,-300.0,0.00017949,2]
[394013882,1763185833196,-300.0,0.00017953,2]
[394013883,1763185833205,-300.0,0.00017956,2]
[394013884,1763185833215,-300.0,0.00017957,2]
[394013885,1763185833224,-300.0,0.00017958,2]
[394013886,1763185833234,-1000.0,0.00017958,2]
[394013887,1763185833243,-300.0,0.00017959,2]
[394013888,1763185833252,-300.0,0.00017959,2]
[394013889,1763185833262,-300.0,0.0001796,2]
[394013890,1763185833271,-300.0,0.00017963,2]
[394013891,1763185833280,-1000.0,0.00017963,2]
[394013892,1763185833290,-300.0,0.00017964,2]
[394013893,1763185833299,-150.0,0.00017965,2]
[394013894,1763185833309,-300.0,0.00017967,2]
[394013895,1763185833318,-300.0,0.00017968,2]
[394013896,1763185833328,-846.96793955,0.00017968,2]
[394013897,1763185833337,-150.0,0.00017969,2]
[394013898,1763185833347,-1000.0,0.00017971,2]
[394013899,1763185833356,-300.0,0.00017972,2]
[394013900,1763185833366,-478.08,0.00017973,2]
[394013901,1763185833375,-478.08,0.00017973,2]
[394013902,1763185833384,-478.08,0.00017973,2]
[394013903,1763185833395,-478.08,0.00017973,2]
[394013904,1763185833404,-478.08,0.00017973,2]
[394013905,1763185833413,-478.08,0.00017973,2]
[394013906,1763185833423,-478.08,0.00017973,2]
[394013907,1763185833432,-478.08,0.00017973,2]
[394013908,1763185833441,-478.08,0.00017973,2]
[394013909,1763185833451,-478.08,0.00017973,2]
[394013910,1763185833460,-478.08,0.00017973,2]
[394013911,1763185833469,-478.08,0.00017973,2]
[394013912,1763185833479,-478.08,0.00017973,2]
[394013913,1763185833488,-478.08,0.00017973,2]
[394013914,1763185833497,-478.08,0.00017973,2]
[394013915,1763185833507,-478.08,0.00017973,2]
[394013916,1763185833516,-500.0,0.00017973,2]
[394013917,1763185833525,-317.62857523,0.00017973,2]
[394013918,1763185833535,-500.0,0.00017973,2]
[394013919,1763185833543,-500.0,0.00017973,2]
[394013920,1763185833553,-502.75636513,0.00017973,2]
[394013921,1763185833562,-177.44614948,0.00017973,2]
[394013922,1763185833572,-500.0,0.00017973,2]
[394013923,1763185833581,-569.5879799,0.00017973,2]
[394013924,1763185833590,-501.80766957,0.00017973,2]
[394013925,1763185833599,-1000.0,0.00017976,2]
[394013926,1763185833610,-150.0,0.00017977,2]
[394013927,1763185833619,-1000.0,0.00017977,2]
[394013928,1763185833628,-300.0,0.0001798,2]
[394013929,1763185833638,-300.0,0.0001798,2]
[394013930,1763185833647,-300.0,0.00017982,2]
[394013931,1763185833656,-300.0,0.00017985,2]
[394013932,1763185833665,-300.0,0.00017987,2]
[394013933,1763185833674,-150.0,0.00017987,2]
[394013934,1763185833683,-300.0,0.00017989,2]
[394013935,1763185833692,-330.43508895,0.00017993,2]
[394013936,1763185833702,-1000.0,0.00017993,2]
[394013937,1763185833711,-3015.3707353,0.00017994,2]
[394013938,1763185833720,-32690.84070879,0.00017994,2]
[394013939,1763185833978,-1550.35763581,0.00017994,2]
[394013940,1763185833987,-300.0,0.00017995,2]
[394013941,1763185833997,-327.23225819,0.00017996,2]
[394013942,1763185834008,-672.76774181,0.00017996,2]
[394013943,1763185834017,-263.79729401,0.00017996,2]
[394013944,1763185834028,-729.20270599,0.00017996,2]
[394013945,1763185834037,-1000.0,0.00017997,2]
[394013946,1763185834047,-308.1164299,0.00017999,2]
[394013947,1763185834259,-300.0,0.00017999,2]
[394013948,1763185834269,-6358.33086411,0.00018,2]
[394013949,1763185834284,-344.81,0.00018,2]
[394013950,1763185834321,-218492.20222669,0.00018,2]
[394013951,1763185834340,-335.31456548,0.00018,2]
[394013952,1763185834351,-578.1981307,0.00018,2]
[394013953,1763185834363,-2354.96308394,0.00018,2]
[394013954,1763185834374,-685.73001,0.00018,2]
[394013956,1763185837348,-168.52627325,0.000179,2]
[394013957,1763185837358,-2511.20024081,0.00018,2]
[394013958,1763185837368,-1443.45977058,0.00018,2]
[394014159,1763185839497,-216.00533476,0.00017969,2]
[394014161,1763185839507,-500.0,0.00017969,2]
[394014163,1763185839518,-250.2839063,0.00017969,2]
[394014166,1763185839530,-903129.018116,0.00018,2]
[394014168,1763185839541,-150.0,0.00018,2]
[394014170,1763185839553,-228.5262142,0.00018,2]
[394014172,1763185839564,-16837.06,0.00018,3]
[394014175,1763185839576,-2000.0,0.00018,2]
[394014177,1763185839587,-451.5,0.00018,2]
[394014179,1763185839599,-1000.0,0.00018,2]
[394014182,1763185839611,-1000.0,0.00018,2]
[394014184,1763185839622,-1000.0,0.00018,2]
[394014186,1763185839633,-1000.0,0.00018,2]
[394014187,1763185839643,-1000.0,0.00018,2]
[394014188,1763185839653,-1000.0,0.00018,2]
[394014189,1763185839664,-1000.0,0.00018,2]
[394014190,1763185839675,-982.542,0.00018,2]
[394014191,1763185839687,-996733.38855328,0.00018,2]
[394014192,1763185839758,-407.77516144,0.00017969,2]
[394014193,1763185839771,-5320.97593611,0.00018,2]
[394014194,1763185839803,-3149.8702969,0.00018,2]
[394014493,1763185842574,-442.3191871,0.00018,2]
[394014525,1763185842852,-560.81104002,0.00018,2]
[394014565,1763185845479,-18005.63241121,0.00018,2]
[394014566,1763185845609,-413.79338072,0.00018,2]
[394014567,1763185975632,165.0,0.00030137,120]
[394014571,1763186957387,160.59,0.00017,7]
[394014575,1763187031617,-250.0,0.00016161,2]
[394014576,1763187031627,-166.66,0.00016382,2]
[394014577,1763187031637,-1000.0,0.00016621,2]
[394014578,1763187031646,-150.0,0.00016642,2]
[394014579,1763187031656,-1000.0,0.000167,2]
[394014580,1763187031666,-166.66,0.00016727,2]
[394014581,1763187031675,-1200.0,0.00016772,2]
[394014582,1763187031684,-300.0,0.00016772,2]
[394014583,1763187031694,-1200.0,0.00016772,2]
[394014584,1763187031703,-500.0,0.00016773,2]
[394014585,1763187031712,-382.86979928,0.00016773,2]
[394014586,1763187031724,-117.13020072,0.00016773,2]
[394014587,1763187031733,-500.0,0.00016773,2]
[394014588,1763187031742,-500.0,0.00016773,2]
[394014589,1763187031751,-500.0,0.00016773,2]
[394014590,1763187031760,-501.23358505,0.00016773,2]
[394014591,1763187031769,-504.92270785,0.00016773,2]
[394014592,1763187031779,-500.0,0.00016773,2]
[394014593,1763187031794,-500.0,0.00016773,2]
[394014594,1763187031804,-500.0,0.00016773,2]
[394014595,1763187031814,-167.62227041,0.00016773,2]
[394014596,1763187031823,-151.0,0.0001679,2]
[394014597,1763187031832,-151.0,0.0001679,2]
[394014598,1763187031842,-151.0,0.0001679,2]
[394014599,1763187031851,-151.0,0.0001679,2]
[394014600,1763187031860,-151.0,0.0001679,2]
[394014601,1763187031868,-151.0,0.0001679,2]